bitfinex/quotes_SOLUSD_20251118
["timestamp","ask_amount","ask_price","bid_price","bid_amount"]
[1763434616014,18.12096,133.22,133.21,18.06171912]
[1763434616403,18.12096,133.22,133.21,8.27289143]
[1763434617131,0.9,133.28,133.21,18.98942699]
[1763434617337,9.2005993,133.27,133.23,9.78882769]
[1763434617638,0.2,133.28,133.25,9.78882769]
[1763434617918,10.1005993,133.28,133.25,9.78882769]
[1763434618098,0.2,133.28,133.24,9.78882769]
[1763434618295,9.4005993,133.28,133.24,9.78882769]
[1763434618624,9.4005993,133.28,133.23,17.4254978]
[1763434618813,0.2,133.28,133.23,17.4254978]
[1763434619127,0.2,133.28,133.23,9.2005993]
[1763434619297,9.4005993,133.28,133.23,9.2005993]
[1763434620008,0.2,133.28,133.23,9.2005993]
[1763434620316,0.2,133.28,133.24,9.2005993]
[1763434620523,9.9005993,133.27,133.22,8.2248985]
[1763434620695,9.2005993,133.25,133.21,9.78882769]
[1763434620896,0.7,133.24,133.19,8.2248985]
[1763434621125,9.2005993,133.22,133.17,17.4254978]
[1763434621305,18.12096,133.22,133.17,17.4254978]
[1763434621626,18.12096,133.22,133.18,9.78882769]
[1763434621924,18.82096,133.22,133.18,9.78882769]
[1763434622309,18.12096,133.22,133.18,9.78882769]
[1763434622928,27.3215593,133.22,133.18,9.78882769]
[1763434623503,18.12096,133.22,133.18,9.78882769]
[1763434623813,28.0215593,133.22,133.18,9.78882769]
[1763434624017,27.3215593,133.22,133.18,9.78882769]
[1763434625001,9.2005993,133.21,133.18,9.78882769]
[1763434625403,9.2005993,133.21,133.17,9.78882769]
[1763434625608,9.2005993,133.19,133.16,9.78882769]
[1763434625815,9.2005993,133.18,133.16,9.78882769]
[1763434626127,0.2,133.28,133.17,9.2005993]
[1763434626128,0.7,133.25,133.17,9.2005993]
[1763434626327,9.2005993,133.22,133.18,9.78882769]
[1763434626531,9.2005993,133.2,133.15,17.4254978]
[1763434626731,9.2005993,133.19,133.16,9.78882769]
[1763434627028,2.2,133.28,133.15,8.2248985]
[1763434627029,0.7,133.27,133.17,18.98942699]
[1763434627257,9.2005993,133.24,133.2,9.78882769]
[1763434627406,9.2005993,133.24,133.19,9.78882769]
[1763434627606,9.9005993,133.23,133.19,9.78882769]
[1763434627803,0.7,133.23,133.19,9.78882769]
[1763434628026,9.2005993,133.24,133.19,18.98942699]
[1763434628529,18.12096,133.23,133.19,18.98942699]
[1763434628834,9.9005993,133.24,133.19,18.98942699]
[1763434629128,9.2005993,133.23,133.19,9.78882769]
[1763434629334,9.9005993,133.23,133.19,9.78882769]
[1763434629529,9.2005993,133.22,133.18,9.78882769]
[1763434629827,9.9005993,133.23,133.18,18.98942699]
[1763434630609,9.9005993,133.23,133.18,9.78882769]
[1763434631108,18.12096,133.17,133.16,9.78882769]
[1763434631308,9.9005993,133.17,133.12,8.2248985]
[1763434631536,9.2005993,133.15,133.1,8.2248985]
[1763434631707,9.2005993,133.15,133.11,9.78882769]
[1763434632037,9.2005993,133.14,133.1,8.2248985]
[1763434632614,9.2005993,133.14,133.1,18.01372619]
[1763434633639,102.7,133.19,133.11,9.78882769]
[1763434633822,9.2005993,133.16,133.11,18.01372619]
[1763434634144,9.2005993,133.15,133.11,9.78882769]
[1763434634716,9.8805993,133.14,133.11,9.78882769]
[1763434634918,9.2005993,133.12,133.11,9.78882769]
[1763434635119,9.2005993,133.13,133.09,9.78882769]
[1763434635348,0.68,133.14,133.09,9.78882769]
[1763434635349,9.2005993,133.12,133.09,9.78882769]
[1763434636144,9.2005993,133.1,133.06,8.2248985]
[1763434636343,27.3215593,133.11,133.06,18.01372619]
[1763434636526,28.0015593,133.11,133.06,18.01372619]
[1763434636726,27.3215593,133.11,133.06,18.01372619]
[1763434636927,9.2005993,133.13,133.09,18.01372619]
[1763434637266,9.2005993,133.11,133.09,9.78882769]
[1763434637444,9.2005993,133.11,133.06,27.21432549]
[1763434637619,9.8805993,133.11,133.06,27.21432549]
[1763434637824,9.2005993,133.1,133.06,18.01372619]
[1763434638043,9.8805993,133.1,133.06,9.78882769]
[1763434638643,18.12096,133.09,133.06,9.78882769]
[1763434638840,0.72,133.09,133.05,8.2248985]
[1763434639037,9.2005993,133.08,133.03,17.4254978]
[1763434639218,9.2005993,133.08,133.04,9.78882769]
[1763434639422,18.84096,133.14,133.07,9.2005993]
[1763434639641,18.12096,133.1,133.07,27.21432549]
[1763434639850,18.12096,133.1,133.07,18.01372619]
[1763434640044,9.2005993,133.12,133.07,18.01372619]
[1763434640223,9.2005993,133.11,133.07,9.78882769]
[1763434640420,0.72,133.11,133.07,9.78882769]
[1763434640752,9.2005993,133.09,133.05,9.78882769]
[1763434641143,9.9205993,133.09,133.04,27.21432549]
[1763434641648,9.9205993,133.09,133.04,18.01372619]
[1763434642649,9.2005993,133.09,133.04,18.01372619]
[1763434642851,9.2005993,133.08,133.04,18.01372619]
[1763434643058,9.9205993,133.08,133.04,9.78882769]
[1763434643348,0.72,133.08,133.04,9.78882769]
[1763434644249,9.2005993,133.09,133.05,9.78882769]
[1763434644439,18.12096,133.1,133.05,17.4254978]
[1763434644440,27.3215593,133.1,133.05,17.4254978]
[1763434644639,28.0415593,133.1,133.05,17.4254978]
[1763434644959,18.12096,133.09,133.08,9.78882769]
[1763434645154,18.12096,133.09,133.06,9.78882769]
[1763434645748,18.84096,133.1,133.06,9.78882769]
[1763434645935,18.12096,133.1,133.06,9.78882769]
[1763434646251,9.2005993,133.11,133.06,9.78882769]
[1763434646252,18.12096,133.11,133.06,27.21432549]
[1763434646643,18.84096,133.11,133.06,27.21432549]
[1763434646848,9.2005993,133.14,133.1,9.78882769]
[1763434647157,9.9205993,133.17,133.13,9.78882769]
[1763434647339,18.12096,133.14,133.1,17.4254978]
[1763434647658,0.72,133.22,133.1,9.2005993]
[1763434647830,18.12096,133.15,133.1,9.2005993]
[1763434648256,18.84096,133.15,133.1,9.2005993]
[1763434648664,18.84096,133.15,133.12,9.78882769]
[1763434649228,18.12096,133.14,133.12,9.78882769]
[1763434649659,2.0,133.25,133.12,9.78882769]
[1763434649660,0.72,133.2,133.14,9.78882769]
[1763434649861,0.72,133.2,133.15,9.2005993]
[1763434650041,9.2005993,133.17,133.12,8.2248985]
[1763434650246,18.12096,133.18,133.11,18.98942699]
[1763434650439,9.2005993,133.16,133.11,9.78882769]
[1763434650641,9.2005993,133.15,133.11,9.78882769]
[1763434650962,0.72,133.15,133.1,18.98942699]
[1763434651144,0.72,133.14,133.1,18.98942699]
[1763434652076,27.3215593,133.16,133.1,27.21432549]
[1763434652077,28.0415593,133.16,133.1,27.21432549]
[1763434652235,28.0415593,133.16,133.11,17.4254978]
[1763434652438,0.72,133.16,133.11,17.4254978]
[1763434652757,0.72,133.16,133.12,9.78882769]
[1763434653234,0.72,133.16,133.12,18.01372619]
[1763434653434,2.0,133.26,133.12,18.01372619]
[1763434653634,5.93286568,133.17,133.12,18.01372619]
[1763434653834,5.93286568,133.16,133.12,9.78882769]
[1763434654057,5.93286568,133.16,133.1,14.15776418]
[1763434654364,0.72,133.15,133.1,14.15776418]
[1763434655548,0.72,133.15,133.1,8.2248985]
[1763434655549,6.65286568,133.15,133.1,8.2248985]
[1763434656182,5.93286568,133.13,133.09,18.01372619]
[1763434656538,0.72,133.12,133.1,8.2248985]
[1763434656959,0.72,133.14,133.1,8.2248985]
[1763434657159,0.72,133.13,133.09,23.94659187]
[1763434657355,0.72,133.13,133.1,8.2248985]
[1763434657555,0.72,133.17,133.12,5.93286568]
[1763434657866,5.93286568,133.16,133.11,18.01372619]
[1763434658344,5.93286568,133.14,133.11,9.78882769]
[1763434658766,0.72,133.13,133.11,9.78882769]
[1763434659683,18.12096,133.14,133.1,18.01372619]
[1763434659865,18.84096,133.14,133.1,23.94659187]
[1763434660051,18.84096,133.14,133.1,18.01372619]
[1763434660461,0.72,133.13,133.1,18.01372619]
[1763434663359,5.93286568,133.12,133.1,8.2248985]
[1763434663667,5.93286568,133.11,133.08,8.2248985]
[1763434663878,5.93286568,133.1,133.08,8.2248985]
[1763434664254,0.72,133.09,133.08,18.01372619]
[1763434665249,0.72,133.09,133.08,8.2248985]
[1763434666073,0.72,133.09,133.07,18.01372619]
[1763434666451,6.65286568,133.09,133.07,18.01372619]
[1763434666974,18.84096,133.08,133.07,18.01372619]
[1763434667478,6.65286568,133.08,133.06,8.2248985]
[1763434667685,0.72,133.07,133.06,18.01372619]
[1763434668579,18.12096,133.08,133.07,9.78882769]
[1763434668955,18.12096,133.08,133.07,18.01372619]
[1763434670152,0.72,133.08,133.07,18.01372619]
[1763434670379,6.65286568,133.08,133.06,8.2248985]
[1763434670875,6.65286568,133.07,133.06,8.2248985]
[1763434671579,6.65286568,133.07,133.05,18.01372619]
[1763434671878,6.65286568,133.06,133.05,8.2248985]
[1763434672177,6.65286568,133.06,133.04,18.01372619]
[1763434672365,6.65286568,133.05,133.04,18.01372619]
[1763434672686,0.72,133.1,133.05,9.78882769]
[1763434672849,0.72,133.14,133.07,9.78882769]
[1763434673182,5.93286568,133.08,133.05,8.25915407]
[1763434673487,5.93286568,133.07,133.05,8.25915407]
[1763434673857,0.72,133.06,133.05,8.25915407]
[1763434674764,5.93286568,133.07,133.05,8.25915407]
[1763434674961,0.72,133.06,133.05,8.25915407]
[1763434675354,24.77382568,133.06,133.05,8.25915407]
[1763434675782,18.84096,133.06,133.05,8.25915407]
[1763434675950,24.77382568,133.06,133.04,18.04798176]
[1763434676156,6.65286568,133.05,133.04,18.04798176]
[1763434676382,0.72,133.05,133.04,18.04798176]
[1763434676606,18.12096,133.06,133.03,27.6123244]
[1763434676760,5.93286568,133.06,133.04,11.89063103]
[1763434676961,5.93286568,133.06,133.05,9.78882769]
[1763434677365,6.65286568,133.06,133.05,18.06646404]
[1763434679983,0.72,133.06,133.05,18.06646404]
[1763434680486,6.65286568,133.06,133.05,8.27763635]
[1763434680688,6.65286568,133.06,133.04,8.27763635]
[1763434680858,2.93886807,133.05,133.04,8.27763635]
[1763434681062,2.21886807,133.09,133.05,9.78882769]
[1763434681381,2.21886807,133.06,133.05,8.26688018]
[1763434681758,2.93886807,133.06,133.04,8.26688018]
[1763434681970,2.93886807,133.05,133.04,8.26688018]
[1763434683083,0.72,133.05,133.01,11.99063103]
[1763434683263,2.21886807,133.03,133.01,0.1]
[1763434683463,2.93886807,133.04,133.01,0.1]
[1763434684388,21.05982807,133.04,133.01,0.1]
[1763434684966,0.72,133.03,133.01,0.1]
[1763434685468,21.05982807,133.02,133.01,0.1]
[1763434685880,2.93886807,133.02,133.0,0.1]
[1763434686074,2.93886807,133.01,133.0,0.1]
[1763434687067,0.72,133.01,133.0,0.1]
[1763434687262,2.93886807,133.01,133.0,0.1]
[1763434687476,18.84096,133.04,133.0,0.1]
[1763434687798,2.21886807,133.03,133.01,9.78882769]
[1763434687989,0.72,133.05,133.01,9.78882769]
[1763434687990,20.33982807,133.04,133.01,9.78882769]
[1763434688180,0.72,133.05,133.01,0.72]
[1763434688376,2.21886807,133.05,133.03,9.78882769]
[1763434689091,20.33982807,133.04,133.01,9.78882769]
[1763434689265,2.21886807,133.03,133.0,9.88882769]
[1763434689465,2.21886807,133.03,133.0,10.60882769]
[1763434689694,21.05982807,133.04,133.0,10.60882769]
[1763434689893,2.21886807,133.07,133.02,9.78882769]
[1763434690097,2.93886807,133.07,133.02,9.78882769]
[1763434690302,0.72,133.07,133.03,0.72]
[1763434690471,0.72,133.06,133.02,12.72769576]
[1763434690665,2.93886807,133.06,133.02,9.78882769]
[1763434690894,18.12096,133.03,133.02,9.78882769]
[1763434691089,18.12096,133.03,133.0,16.55246052]
[1763434691364,18.12096,133.03,133.02,9.78882769]
[1763434691588,18.12096,133.03,133.01,0.72]
[1763434691782,18.12096,133.03,133.0,9.88882769]
[1763434691993,18.12096,133.03,133.01,16.40246052]
[1763434692196,18.12096,133.04,133.01,16.40246052]
[1763434692584,18.12096,133.04,133.01,10.45882769]
[1763434692799,0.72,133.06,133.01,10.45882769]
[1763434693098,18.12096,133.03,133.01,10.45882769]
[1763434693270,18.12096,133.03,133.02,9.78882769]
[1763434693814,18.12096,133.03,133.01,5.94363283]
[1763434693984,18.12096,133.03,133.02,0.67]
[1763434694196,18.12096,133.04,133.01,0.67]
[1763434694886,18.12096,133.04,133.0,0.1]
[1763434694887,18.12096,133.03,133.0,0.1]
[1763434695087,18.12096,133.03,133.01,9.78882769]
[1763434695492,18.12096,133.01,133.0,0.1]
[1763434696269,18.12096,133.02,133.0,0.1]
[1763434696980,102.7,133.09,133.02,9.78882769]
[1763434697326,18.12096,133.04,133.02,9.78882769]
[1763434697503,18.12096,133.04,133.02,0.67]
[1763434697805,18.12096,133.05,133.03,9.78882769]
[1763434698105,102.7,133.09,133.04,15.73246052]
[1763434698271,5.94363283,133.12,133.06,5.94363283]
[1763434698602,0.72,133.12,133.08,15.73246052]
[1763434698800,18.12096,133.1,133.08,16.45246052]
[1763434699096,5.94363283,133.13,133.09,6.66363283]
[1763434699097,18.12096,133.11,133.09,6.66363283]
[1763434699278,0.67,133.13,133.1,9.78882769]
[1763434699682,18.12096,133.11,133.1,9.78882769]
[1763434699883,0.67,133.16,133.11,0.72]
[1763434700087,5.94363283,133.17,133.13,9.78882769]
[1763434700407,18.12096,133.13,133.12,9.78882769]
[1763434700581,24.06459283,133.17,133.12,10.50882769]
[1763434700781,24.06459283,133.17,133.12,16.45246052]
[1763434701094,0.67,133.16,133.12,16.45246052]
[1763434701296,0.67,133.16,133.13,6.16844391]
[1763434701488,5.94363283,133.18,133.13,6.88844391]
[1763434701802,6.61363283,133.19,133.15,6.16844391]
[1763434701983,18.12096,133.16,133.15,15.9572716]
[1763434702181,0.67,133.19,133.15,15.9572716]
[1763434702677,0.67,133.19,133.14,9.78882769]
[1763434702876,18.12096,133.15,133.14,6.16844391]
[1763434703097,18.79096,133.19,133.13,6.16844391]
[1763434703276,0.2,133.21,133.13,15.9572716]
[1763434703277,18.12096,133.15,133.13,15.9572716]
[1763434703488,18.12096,133.15,133.14,9.78882769]
[1763434703804,18.79096,133.15,133.13,6.16844391]
[1763434703989,0.67,133.17,133.13,15.9572716]
[1763434704185,18.12096,133.14,133.13,15.9572716]
[1763434704587,18.12096,133.15,133.13,6.16844391]
[1763434704978,0.67,133.14,133.12,6.16844391]
[1763434705181,18.12096,133.13,133.12,6.16844391]
[1763434706013,0.67,133.15,133.12,6.16844391]
[1763434706509,6.61363283,133.15,133.11,6.16844391]
[1763434706807,5.94363283,133.14,133.11,6.16844391]
[1763434707107,5.94363283,133.14,133.09,0.72]
[1763434707108,6.61363283,133.14,133.1,6.16844391]
[1763434707406,0.67,133.13,133.11,6.16844391]
[1763434708004,5.94363283,133.15,133.11,6.16844391]
[1763434708180,6.61363283,133.15,133.11,6.16844391]
[1763434708384,5.94363283,133.15,133.11,6.16844391]
[1763434708582,0.67,133.14,133.11,6.16844391]
[1763434709416,6.61363283,133.14,133.1,6.16844391]
[1763434709614,6.61363283,133.14,133.11,6.16844391]
[1763434709796,0.67,133.13,133.11,6.16844391]
[1763434712817,0.67,133.13,133.1,12.11207674]
[1763434713116,6.61363283,133.13,133.09,6.16844391]
[1763434713625,0.67,133.12,133.09,6.16844391]
[1763434715797,102.7,133.14,133.1,9.90954468]
[1763434715997,0.67,133.13,133.11,9.18954468]
[1763434716207,0.67,133.13,133.1,15.35798859]
[1763434716607,18.12096,133.11,133.1,15.35798859]
[1763434716805,18.12096,133.11,133.1,6.16844391]
[1763434717324,18.12096,133.11,133.09,9.63085265]
[1763434717519,18.12096,133.11,133.1,6.16844391]
[1763434719424,0.67,133.14,133.1,13.97123643]
[1763434719594,0.67,133.14,133.11,6.1862502]
[1763434719992,18.12096,133.13,133.11,6.1862502]
[1763434720207,4.13240874,133.14,133.11,6.1862502]
[1763434720406,0.67,133.13,133.11,6.1862502]
[1763434720606,4.13240874,133.13,133.1,6.1862502]
[1763434721003,0.67,133.12,133.09,6.1862502]
[1763434724314,0.67,133.12,133.08,6.1862502]
[1763434724517,4.13240874,133.12,133.09,6.1862502]
[1763434724936,0.72,133.11,133.09,6.1862502]
[1763434725623,3.46240874,133.1,133.09,6.1862502]
[1763434725828,3.46240874,133.1,133.07,6.1862502]
[1763434726041,3.46240874,133.08,133.06,6.1862502]
[1763434726244,3.46240874,133.07,133.06,6.1862502]
[1763434726738,4.18240874,133.07,133.04,6.1862502]
[1763434726956,3.46240874,133.05,133.04,6.1862502]
[1763434727244,3.46240874,133.05,133.03,6.1862502]
[1763434727553,4.18240874,133.04,133.03,6.1862502]
[1763434727915,4.18240874,133.04,133.02,6.1862502]
[1763434728117,106.88240874,133.03,133.01,5.4662502]
[1763434728419,18.12096,133.01,133.0,0.1]
[1763434728623,21.58336874,133.01,133.0,0.1]
[1763434728839,9.21013605,133.01,132.94,8.23557993]
[1763434729137,9.21013605,132.97,132.94,9.78882769]
[1763434729336,9.21013605,132.96,132.94,0.72]
[1763434729513,9.21013605,132.97,132.94,0.72]
[1763434729709,0.53,132.99,132.91,8.23557993]
[1763434729710,9.21013605,132.95,132.91,8.23557993]
[1763434729935,9.21013605,132.93,132.89,45.63669969]
[1763434730139,9.21013605,132.92,132.89,38.12111976]
[1763434730337,9.21013605,132.93,132.89,38.12111976]
[1763434730522,9.21013605,132.93,132.9,9.78882769]
[1763434730723,9.21013605,132.93,132.9,0.72]
[1763434730939,18.12096,132.89,132.88,0.1]
[1763434731124,18.12096,132.9,132.89,0.72]
[1763434731530,18.12096,132.9,132.88,0.1]
[1763434731731,18.12096,132.9,132.88,0.82]
[1763434732035,9.21013605,132.91,132.89,9.78882769]
[1763434732237,9.21013605,132.91,132.88,0.1]
[1763434732538,9.21013605,132.91,132.89,9.78882769]
[1763434732721,0.53,132.97,132.89,9.78882769]
[1763434733048,9.21013605,132.93,132.88,0.1]
[1763434733228,9.21013605,132.92,132.9,9.78882769]
[1763434734133,0.53,132.95,132.88,10.60882769]
[1763434734352,9.21013605,132.96,132.91,9.21013605]
[1763434734552,10.90847922,133.03,132.93,9.25882769]
[1763434734761,10.90847922,133.03,132.83,37.13318254]
[1763434734762,2.0,132.9,132.84,8.23557993]
[1763434735048,2.0,132.79,132.76,9.78882769]
[1763434735244,2.0,132.79,132.71,8.23486922]
[1763434735245,9.21013605,132.77,132.71,0.72]
[1763434735441,11.21013605,132.8,132.71,0.72]
[1763434735442,9.21013605,132.75,132.72,0.72]
[1763434735624,9.21013605,132.8,132.72,0.72]
[1763434735625,17.45648831,132.79,132.72,0.72]
[1763434736315,9.21013605,132.8,132.72,0.72]
[1763434736515,9.21013605,132.74,132.72,0.72]
[1763434736719,9.21013605,132.8,132.7,0.72]
[1763434737065,9.21013605,132.8,132.71,9.78882769]
[1763434737351,9.21013605,132.8,132.7,0.72]
[1763434737352,2.0,132.79,132.7,0.72]
[1763434737536,2.0,132.79,132.65,37.29298118]
[1763434737537,18.12096,132.7,132.65,37.29298118]
[1763434737714,15.15131957,132.8,132.66,0.72]
[1763434737715,20.12096,132.77,132.66,0.72]
[1763434737916,20.12096,132.76,132.66,0.72]
[1763434738245,9.21013605,132.68,132.66,0.72]
[1763434738434,9.21013605,132.67,132.61,22.69203131]
[1763434738629,9.21013605,132.67,132.33,21.19391878]
[1763434738630,18.12096,132.64,132.55,37.78993091]
[1763434738838,18.12096,132.64,132.55,0.72]
[1763434739033,18.12096,132.64,132.56,0.72]
[1763434739337,18.12096,132.64,132.53,38.10106349]
[1763434739525,18.12096,132.64,132.54,0.72]
[1763434739526,2.0,132.64,132.54,0.72]
[1763434739732,2.0,132.66,132.55,9.21013605]
[1763434739934,9.21013605,132.61,132.54,0.72]
[1763434740117,13.473356,132.67,132.54,0.72]
[1763434740322,2.0,132.69,132.58,9.78882769]
[1763434740534,9.21013605,132.64,132.58,9.78882769]
[1763434740716,2.0,132.71,132.6,9.78882769]
[1763434740917,19.06358763,132.74,132.6,9.78882769]
[1763434741144,2.0,132.75,132.62,9.78882769]
[1763434741349,2.0,132.74,132.63,0.72]
[1763434742145,2.0,132.74,132.63,9.93013605]
[1763434742372,9.21013605,132.69,132.63,9.93013605]
[1763434742638,2.0,132.74,132.64,0.72]
[1763434742850,9.21013605,132.67,132.64,0.72]
[1763434743016,27.33109605,132.65,132.61,0.72]
[1763434743216,18.12096,132.67,132.61,0.72]
[1763434743418,9.21013605,132.64,132.61,0.72]
[1763434743625,18.12096,132.62,132.61,0.72]
[1763434744054,9.21013605,132.63,132.61,0.72]
[1763434744257,9.21013605,132.7,132.59,0.72]
[1763434744258,20.12096,132.67,132.59,0.72]
[1763434744542,18.12096,132.58,132.56,9.78882769]
[1763434744744,18.12096,132.58,132.56,18.99896374]
[1763434744941,20.12096,132.67,132.56,18.99896374]
[1763434745157,18.12096,132.58,132.57,0.72]
[1763434745633,2.0,132.65,132.57,0.72]
[1763434745820,10.23576137,132.7,132.57,0.72]
[1763434746153,2.0,132.72,132.62,9.78882769]
[1763434746353,18.12096,132.71,132.57,0.72]
[1763434746529,2.0,132.73,132.62,9.21013605]
[1763434746726,18.12096,132.71,132.61,9.78882769]
[1763434746933,10.23576137,132.74,132.61,9.78882769]
[1763434747244,10.23576137,132.74,132.59,0.72]
[1763434747245,18.12096,132.71,132.63,9.78882769]
[1763434747426,18.12096,132.75,132.64,9.21013605]
[1763434747625,18.12096,132.75,132.64,0.72]
[1763434747626,18.12096,132.65,132.64,0.72]
[1763434747846,18.12096,132.65,132.64,10.50882769]
[1763434748055,18.12096,132.65,132.64,0.72]
[1763434748258,18.12096,132.67,132.64,0.72]
[1763434748433,18.12096,132.66,132.65,9.78882769]
[1763434748632,9.21013605,132.68,132.65,9.78882769]
[1763434748944,18.12096,132.66,132.63,9.78882769]
[1763434749139,18.12096,132.66,132.59,9.78882769]
[1763434749340,18.12096,132.72,132.62,9.78882769]
[1763434749656,18.12096,132.64,132.62,9.78882769]
[1763434749828,9.21013605,132.66,132.64,9.78882769]
[1763434750031,9.21013605,132.65,132.64,9.78882769]
[1763434750228,9.21013605,132.65,132.61,0.72]
[1763434750455,9.21013605,132.62,132.6,0.72]
[1763434750656,9.21013605,132.61,132.58,18.99896374]
[1763434750842,2.0,132.69,132.58,18.99896374]
[1763434751029,2.0,132.67,132.58,9.78882769]
[1763434751226,2.0,132.63,132.56,18.99896374]
[1763434751432,2.0,132.59,132.49,0.72]
[1763434751844,9.21013605,132.53,132.49,0.72]
[1763434752152,9.21013605,132.53,132.47,0.67]
[1763434752477,2.0,132.58,132.49,0.67]
[1763434752757,9.21013605,132.53,132.49,0.67]
[1763434752934,2.0,132.58,132.5,9.78882769]
[1763434753130,9.21013605,132.53,132.5,9.78882769]
[1763434753530,18.12096,132.5,132.46,9.21013605]
[1763434753749,10.23576137,132.53,132.44,0.67]
[1763434753951,9.21013605,132.47,132.44,37.42892603]
[1763434754153,10.23576137,132.53,132.45,37.81920402]
[1763434754460,9.21013605,132.46,132.45,0.67]
[1763434755056,9.21013605,132.46,132.43,38.45500017]
[1763434755269,9.21013605,132.44,132.41,22.7350233]
[1763434755555,9.21013605,132.42,132.4,37.69271441]
[1763434755725,18.12096,132.48,132.42,9.78882769]
[1763434755930,9.21013605,132.44,132.42,9.78882769]
[1763434756131,11.21013605,132.6,132.44,9.78882769]
[1763434756330,2.0,132.56,132.46,9.78882769]
[1763434756529,9.21013605,132.51,132.46,18.99896374]
[1763434756827,2.0,132.55,132.48,9.78882769]
[1763434757049,2.0,132.54,132.45,0.67]
[1763434757254,2.0,132.54,132.46,9.78882769]
[1763434757553,2.0,132.54,132.4,37.69271441]
[1763434757759,2.0,132.54,132.44,9.78882769]
[1763434757944,9.21013605,132.46,132.44,9.78882769]
[1763434758149,2.0,132.54,132.45,9.78882769]
[1763434758453,9.21013605,132.48,132.45,10.45882769]
[1763434758668,6.81808391,132.59,132.47,9.78882769]
[1763434758831,9.21013605,132.52,132.47,9.78882769]
[1763434759032,6.81808391,132.59,132.49,9.78882769]
[1763434759033,8.81808391,132.59,132.49,9.78882769]
[1763434759232,9.21013605,132.51,132.49,9.78882769]
[1763434759743,9.21013605,132.5,132.49,0.7]
[1763434759935,6.81808391,132.59,132.49,0.7]
[1763434760254,7.32871999,132.64,132.49,0.7]
[1763434760439,9.21013605,132.57,132.52,9.78882769]
[1763434760641,9.21013605,132.54,132.51,9.78882769]
[1763434760937,9.21013605,132.55,132.52,0.7]
[1763434761129,9.21013605,132.56,132.52,0.7]
[1763434761333,39.16981869,132.65,132.52,0.7]
[1763434761635,9.21013605,132.56,132.52,0.7]
[1763434761829,9.21013605,132.59,132.54,9.78882769]
[1763434762030,9.21013605,132.59,132.56,9.78882769]
[1763434762568,9.21013605,132.65,132.58,18.99896374]
[1763434762753,9.21013605,132.66,132.57,0.7]
[1763434762944,9.21013605,132.66,132.61,9.78882769]
[1763434763144,9.21013605,132.66,132.62,0.7]
[1763434763341,8.09813759,132.75,132.62,0.7]
[1763434763664,9.21013605,132.7,132.63,9.78882769]
[1763434763829,9.21013605,132.66,132.63,9.78882769]
[1763434764035,9.21013605,132.7,132.65,18.99896374]
[1763434764254,9.66626322,132.77,132.65,18.99896374]
[1763434764477,9.21013605,132.7,132.67,9.78882769]
[1763434764659,12.81950384,132.79,132.56,4.6]
[1763434764660,2.0,132.76,132.68,0.7]
[1763434764958,48.63694894,132.79,132.69,9.78882769]
[1763434764959,2.0,132.78,132.69,9.78882769]
[1763434765183,2.0,132.78,132.57,0.7]
[1763434765184,2.0,132.77,132.67,9.78882769]
[1763434765532,7.16124786,132.78,132.68,0.7]
[1763434765781,9.21013605,132.71,132.68,0.7]
[1763434765936,9.21013605,132.71,132.69,9.78882769]
[1763434766133,18.87639927,132.8,132.69,9.78882769]
[1763434766333,9.21013605,132.74,132.71,9.78882769]
[1763434766538,9.21013605,132.77,132.73,9.78882769]
[1763434766739,9.21013605,132.77,132.75,9.78882769]
[1763434766966,0.66,132.83,132.75,9.78882769]
[1763434767142,9.21013605,132.77,132.72,9.21013605]
[1763434767340,0.66,132.83,132.73,10.48882769]
[1763434767539,9.66626322,132.86,132.73,10.48882769]
[1763434767747,11.01950384,132.87,132.75,9.78882769]
[1763434767748,0.66,132.85,132.75,9.78882769]
[1763434768236,0.66,132.85,132.64,4.6]
[1763434768237,9.21013605,132.79,132.77,9.78882769]
[1763434768440,0.2,132.87,132.79,9.78882769]
[1763434768668,9.21013605,132.85,132.79,18.99896374]
[1763434768866,9.21013605,132.85,132.81,9.78882769]
[1763434769045,0.2,132.87,132.81,9.78882769]
[1763434769246,0.2,132.87,132.83,9.78882769]
[1763434769440,9.41013605,132.87,132.83,9.78882769]
[1763434769681,9.21013605,132.84,132.7,42.77006519]
[1763434769888,9.21013605,132.8,132.67,0.7]